Workbook

Sheet Data
A1: Problem 1 Undersaturated oil field, TPG4230 V2020, Resit exam, Prof. Milan Stanko
A2: Annual uptime | B2: 360 | C2: day | S2: Question 3. PROBABILITY TREE | V2: Base case cost [1E06 USD] | W2: 200
A3: Initial Reservoir Pressure, PRi | B3: 265 | C3: bara
A4: Reservoir Pressure decline rate, CD | B4: 70 | C4: bara | S4: Case | T4: Probability N | U4: N [1E06 Sm3] | V4: Probability Cost factor | W4: Cost factor | X4: Cost [1E06 USD] | Y4: Probability of case | Z4: NPV of case [1E06 USD]
A5: Initial oil in place | B5: 4000000 | C5: [Sm3] | S5: 1 - Low N, high cost | T5: 0.5 | U5: 3.6 | V5: 0.5 | W5: 1.1 | X5: =$W$2*W5 -> 220 | Y5: =V5*T5 -> 0.25 | Z5: 85.77675462
A6: Productivity index well (oil) | B6: 60 | C6: Sm3/d/bara | S6: 2 - Low N, low cost | T6: 0.5 | U6: 3.6 | V6: 0.5 | W6: 0.9 | X6: =$W$2*W6 -> 180 | Y6: =V6*T6 -> 0.25 | Z6: 125.7767546
A7: Oil density, Rho | B7: 861 | C7: kg/m3 | S7: 3 - High N, high cost | T7: 0.5 | U7: 5.2 | V7: 0.5 | W7: 1.1 | X7: 220 | Y7: 0.25 | Z7: 233.6404432
A8: Oil viscosity(average), Vis | B8: 0.00103 | C8: Pa s | S8: 4 - High N, low cost | T8: 0.5 | U8: 5.2 | V8: 0.5 | W8: 0.9 | X8: 180 | Y8: 0.25 | Z8: 193.6404432
A9: Tubing data | O9: NPV CALCULATIONS
A10: Measured depth, MD | B10: 2200 | C10: m | O10: Discount rate | P10: [1/year] | Q10: 0.08
A11: Deviation angle (from horizontal) | B11: 90 | C11: deg | O11: Oil price | P11: [USD/Sm3] | Q11: 180
A12: Tubing inner Diameter, ID | B12: 0.154 | C12: m | O12: COST | P12: [1E06 USD] | Q12: 200
A13: Tubing Roughness | B13: 1.5e-05 | C13: m | O13: NPV | P13: [1E06 USD] | Q13: =Q14-Q12 -> 122.7837272
A14: Pipeline data | O14: NPVrev | P14: [1E06 USD] | Q14: =SUM(O17:O21) -> 322.7837272
A15: Horizontal pipe length | B15: 14000 | C15: m | D15: time | E15: qwwell | F15: DNp | G15: Np | H15: RF | I15: PR | J15: pwf | K15: Pwh | L15: Priserbase | M15: psep | N15: error | O15: Discounted yearly revenue
A16: Pipeline inner diameter, ID | B16: =10*0.0254 -> 0.254 | C16: m | D16: [year] | E16: [Sm3/d] | F16: [Sm3] | G16: [Sm3] | H16: [-] | I16: [bara] | J16: [bara] | K16: [bara] | L16: [bara] | M16: [bara] | N16: [bar] | O16: [1E06 USD]
A17: Deviation angle (from horizontal) | B17: 0 | C17: deg | D17: 0 | E17: =IPRqo(I17,$B$6,J17) -> 2424.911948 | F17: =E17*(D18-D17)*$B$2 -> 872968.3014 | G17: 0 | H17: =G17/$B$5 -> 0 | I17: =B3 -> 265 | J17: 224.5848009 | K17: =pout(E17,$B$12,$B$7,$B$8,$B$10,$B$11,J17,$B$13) -> 36.49494811 | L17: =pout(E17,$B$16,$B$7,$B$8,$B$15,$B$17,K17,$B$18) -> 35.21993189 | M17: =pout(E17,$B$21,$B$7,$B$8,$B$20,$B$22,L17,$B$13) -> 20.00000082 | N17: =($B$24-M17) -> -8.192801459e-07 | O17: 0
A18: Pipeline roughness | B18: 1.5e-05 | C18: m | D18: 1 | E18: =IPRqo(I18,$B$6,J18) -> 1619.440856 | F18: =E18*(D19-D18)*$B$2 -> 582998.708 | G18: =G17+F17 -> 872968.3014 | H18: =G18/$B$5 -> 0.2182420754 | I18: =pressuredecline($I$17,G18,$B$4,$B$5) -> 249.7230547 | J18: 222.7323738 | K18: =pout(E18,$B$12,$B$7,$B$8,$B$10,$B$11,J18,$B$13) -> 35.82742651 | L18: =pout(E18,$B$16,$B$7,$B$8,$B$15,$B$17,K18,$B$18) -> 35.21145767 | M18: =pout(E18,$B$21,$B$7,$B$8,$B$20,90,L18,$B$13) -> 20.00000008 | N18: =($B$24-M18) -> -7.56280798e-08 | O18: =F17*$Q$11/((1+$Q$10)^D18)/1000000 -> 145.4947169
A19: Riser data | D19: 2 | E19: =IPRqo(I19,$B$6,J19) -> 1061.910108 | F19: =E19*(D20-D19)*$B$2 -> 382287.639 | G19: =G18+F18 -> 1455967.009 | H19: 0.3639917524 | I19: =pressuredecline($I$17,G19,$B$4,$B$5) -> 239.5205773 | J19: 221.8220755 | K19: =pout(E19,$B$12,$B$7,$B$8,$B$10,$B$11,J19,$B$13) -> 35.49676664 | L19: =pout(E19,$B$16,$B$7,$B$8,$B$15,$B$17,K19,$B$18) -> 35.20726023 | M19: =pout(E19,$B$21,$B$7,$B$8,$B$20,90,L19,$B$13) -> 20 | N19: =($B$24-M19) -> -4.429253408e-09 | O19: =F18*$Q$11/((1+$Q$10)^D19)/1000000 -> 89.96893642
A20: vertical pipe length | B20: 180 | C20: m | D20: 3 | E20: =IPRqo(I20,$B$6,J20) -> 686.439499 | F20: =E20*(D21-D20)*$B$2 -> 247118.2196 | G20: =G19+F19 -> 1838254.648 | H20: 0.4595636621 | I20: =pressuredecline($I$17,G20,$B$4,$B$5) -> 232.8305437 | J20: 221.3898853 | K20: =pout(E20,$B$12,$B$7,$B$8,$B$10,$B$11,J20,$B$13) -> 35.33866209 | L20: =pout(E20,$B$16,$B$7,$B$8,$B$15,$B$17,K20,$B$18) -> 35.20525326 | M20: =pout(E20,$B$21,$B$7,$B$8,$B$20,90,L20,$B$13) -> 20 | N20: =($B$24-M20) -> -1.155910923e-10 | O20: 54.62500558
A21: Flowline data diameter, ID | B21: =10*0.0254 -> 0.254 | C21: m | D21: 4 | E21: =IPRqo(I21,$B$6,J21) -> 438.9693234 | F21: =E21*(D22-D21)*$B$2 -> 158028.9564 | G21: =G20+F20 -> 2085372.868 | H21: 0.521343217 | I21: =pressuredecline($I$17,G21,$B$4,$B$5) -> 228.5059748 | J21: 221.1898194 | K21: =pout(E21,$B$12,$B$7,$B$8,$B$10,$B$11,J21,$B$13) -> 35.2650113 | L21: =pout(E21,$B$16,$B$7,$B$8,$B$15,$B$17,K21,$B$18) -> 35.20431834 | M21: =pout(E21,$B$21,$B$7,$B$8,$B$20,90,L21,$B$13) -> 20 | N21: =($B$24-M21) -> -1.2740351e-09 | O21: 32.69506835
A22: Deviation angle (from horizontal) | B22: 90 | C22: deg | D22: 5
A23: Riser roughness | B23: 1.5e-05 | C23: m | D23: 6
A24: Separator Pressure | B24: 20 | C24: bara | D24: 7
D25: 8
D26: 9
D27: 10
D28: 11
D29: 12
D30: 13
D31: 14
D32: 15
D33: 16

Sheet N_dist
A1: N [1E06 Sm3] | B1: pdf | C1: cdf
A2: 2.400367333 | B2: 3.802630494e-05 | C2: 0
A3: 2.634633864 | B3: 0.0002632852445 | C3: 0.001607580799
A4: 2.868900394 | B4: 0.001005510779 | C4: 0.00834862495
A5: 3.103166925 | B5: 0.002537979372 | C5: 0.02827409048
A6: 3.337433456 | B6: 0.004748739629 | C6: 0.07044168194
A7: 3.571699987 | B7: 0.007110648651 | C7: 0.1399965116
A8: 3.805966518 | B8: 0.00898554729 | C8: 0.2348962726
A9: 4.040233048 | B9: 0.009953925998 | C9: 0.3466711124
A10: 4.274499579 | B10: 0.009940060296 | C10: 0.4639471071
A11: 4.50876611 | B11: 0.009137704625 | C11: 0.5761745615
A12: 4.743032641 | B12: 0.007857901817 | C12: 0.6759060344
A13: 4.977299171 | B13: 0.006400491167 | C13: 0.7593645382
A14: 5.211565702 | B14: 0.004986838636 | C14: 0.8258579482
A15: 5.445832233 | B15: 0.003745821932 | C15: 0.8767378003
A16: 5.680098764 | B16: 0.002729753553 | C16: 0.9143924603
A17: 5.914365295 | B17: 0.001939938614 | C17: 0.9414987229
A18: 6.148631825 | B18: 0.001350125011 | C18: 0.9605674709
A19: 6.382898356 | B19: 0.0009234156774 | C19: 0.9737271499
A20: 6.617164887 | B20: 0.0006224716766 | C20: 0.9826648329
A21: 6.851431418 | B21: 0.0004145699149 | C21: 0.9886547278
A22: 7.085697948 | B22: 0.000273351599 | C22: 1
